fUSD/lending_fUSD_20260602
["ID","MTS","AMOUNT","RATE_DAILY","PERIOD"]
[423769725,1780411843000,-677.9,0.00013698,2]
[423769755,1780411843000,-500.0,0.00013698,2]
[423769731,1780411843000,-677.9,0.00013698,2]
[423769745,1780411843000,-635.60098635,0.00013698,2]
[423769739,1780411843000,-500.0,0.00013698,2]
[423769737,1780411843000,-677.9,0.00013698,2]
[423769747,1780411843000,-500.0,0.00013698,2]
[423769749,1780411843000,-500.0,0.00013698,2]
[423769751,1780411843000,-500.0,0.00013698,2]
[423769753,1780411843000,-500.0,0.00013698,2]
[423769763,1780411843000,-500.0,0.00013698,2]
[423769742,1780411843000,-500.0,0.00013698,2]
[423769787,1780411843000,-500.0,0.00013698,2]
[423769791,1780411843000,-500.0,0.00013698,2]
[423769783,1780411843000,-500.0,0.00013698,2]
[423769806,1780411843000,-802.91,0.00013698,2]
[423769810,1780411843000,-802.91,0.00013698,2]
[423769809,1780411843000,-802.91,0.00013698,2]
[423769815,1780411843000,-380.51944725,0.00013698,2]
[423769816,1780411843000,-299.89055275,0.00013698,2]
[423769814,1780411843000,-422.39055275,0.00013698,2]
[423769818,1780411843000,-231.1800513,0.00013698,2]
[423769817,1780411843000,-503.01944725,0.00013698,2]
[423769808,1780411843000,-802.91,0.00013698,2]
[423769828,1780411843000,-500.0,0.00013698,2]
[423769824,1780411843000,-254.22236983,0.00013698,2]
[423769827,1780411843000,-500.0,0.00013698,2]
[423769830,1780411843000,-500.0,0.00013698,2]
[423769831,1780411843000,-500.0,0.00013698,2]
[423769829,1780411843000,-500.0,0.00013698,2]
[423769832,1780411843000,-500.0,0.00013698,2]
[423769780,1780411843000,-500.0,0.00013698,2]
[423769833,1780411843000,-500.0,0.00013698,2]
[423769826,1780411843000,-500.0,0.00013698,2]
[423769807,1780411843000,-802.91,0.00013698,2]
[423769825,1780411843000,-14.59757887,0.00013698,2]
[423769812,1780411843000,-802.91,0.00013698,2]
[423769790,1780411843000,-406.22353845,0.00013698,2]
[423769805,1780411843000,-802.91,0.00013698,2]
[423769786,1780411843000,-500.0,0.00013698,2]
[423769789,1780411843000,-500.0,0.00013698,2]
[423769801,1780411843000,-500.0,0.00013698,2]
[423769793,1780411843000,-500.0,0.00013698,2]
[423769792,1780411843000,-500.0,0.00013698,2]
[423769794,1780411843000,-500.0,0.00013698,2]
[423769798,1780411843000,-500.0,0.00013698,2]
[423769800,1780411843000,-500.0,0.00013698,2]
[423769797,1780411843000,-500.0,0.00013698,2]
[423769802,1780411843000,-500.0,0.00013698,2]
[423769811,1780411843000,-802.91,0.00013698,2]
[423769795,1780411843000,-500.0,0.00013698,2]
[423769804,1780411843000,-300.0,0.00013698,2]
[423769803,1780411843000,-384.91926236,0.00013698,2]
[423769813,1780411843000,-802.91,0.00013698,2]
[423769799,1780411843000,-500.0,0.00013698,2]
[423769796,1780411843000,-500.0,0.00013698,2]
[423769881,1780411844000,-249.434936,0.00013699,2]
[423769883,1780411844000,-151.0,0.00013699,2]
[423769882,1780411844000,-200.0,0.00013699,2]
[423769878,1780411844000,-151.0,0.00013699,2]
[423769871,1780411844000,-151.0,0.00013699,2]
[423769872,1780411844000,-151.0,0.00013699,2]
[423769880,1780411844000,-151.0,0.00013699,2]
[423769879,1780411844000,-151.0,0.00013699,2]
[423769877,1780411844000,-151.0,0.00013699,2]
[423769870,1780411844000,-151.0,0.00013699,2]
[423769869,1780411844000,-151.0,0.00013699,2]
[423769873,1780411844000,-151.0,0.00013699,2]
[423769875,1780411844000,-151.0,0.00013699,2]
[423769886,1780411844000,-151.0,0.00013699,2]
[423769889,1780411844000,-151.0,0.00013699,2]
[423769888,1780411844000,-151.0,0.00013699,2]
[423769884,1780411844000,-151.0,0.00013699,2]
[423769890,1780411844000,-151.0,0.00013699,2]
[423769891,1780411844000,-151.0,0.00013699,2]
[423769892,1780411844000,-151.0,0.00013699,2]
[423769895,1780411844000,-500.0,0.00013699,10]
[423769894,1780411844000,-198.767907,0.00013699,2]
[423769885,1780411844000,-151.0,0.00013699,2]
[423769896,1780411844000,-500.0,0.00013699,10]
[423769893,1780411844000,-151.0,0.00013699,2]
[423769887,1780411844000,-151.0,0.00013699,2]
[423769868,1780411844000,-151.0,0.00013699,2]
[423769897,1780411844000,-305.98553863,0.00013699,10]
[423769876,1780411844000,-151.0,0.00013699,2]
[423769861,1780411844000,-1441.3,0.00013698,2]
[423769846,1780411844000,-500.0,0.00013698,2]
[423769860,1780411844000,-1441.3,0.00013698,2]
[423769900,1780411844000,-500.0,0.00013719,2]
[423769841,1780411844000,-500.0,0.00013698,2]
[423769843,1780411844000,-500.0,0.00013698,2]
[423769842,1780411844000,-500.0,0.00013698,2]
[423769834,1780411844000,-500.0,0.00013698,2]
[423769837,1780411844000,-500.0,0.00013698,2]
[423769839,1780411844000,-500.0,0.00013698,2]
[423769835,1780411844000,-500.0,0.00013698,2]
[423769836,1780411844000,-500.0,0.00013698,2]
[423769845,1780411844000,-500.0,0.00013698,2]
[423769855,1780411844000,-1441.3,0.00013698,2]
[423769844,1780411844000,-500.0,0.00013698,2]
[423769856,1780411844000,-1441.3,0.00013698,2]
[423769847,1780411844000,-500.0,0.00013698,2]
[423769848,1780411844000,-500.0,0.00013698,2]
[423769852,1780411844000,-1441.3,0.00013698,2]
[423769851,1780411844000,-1441.3,0.00013698,2]
[423769850,1780411844000,-220.83932048,0.00013698,2]
[423769853,1780411844000,-1441.3,0.00013698,2]
[423769854,1780411844000,-1441.3,0.00013698,2]
[423769849,1780411844000,-216.0,0.00013698,2]
[423769862,1780411844000,-180.0,0.00013699,2]
[423769863,1780411844000,-166.66,0.00013699,2]
[423769865,1780411844000,-151.0,0.00013699,2]
[423769857,1780411844000,-1441.3,0.00013698,2]
[423769864,1780411844000,-2500.0,0.00013699,2]
[423769858,1780411844000,-1441.3,0.00013698,2]
[423769866,1780411844000,-151.0,0.00013699,2]
[423769867,1780411844000,-151.0,0.00013699,2]
[423769859,1780411844000,-1441.3,0.00013698,2]
[423769899,1780411844000,-163.51,0.000137,2]
[423769937,1780411844000,-150.0,0.0001396,2]
[423769901,1780411844000,-2319.0,0.0001372,2]
[423769946,1780411844000,-1917.07,0.00014,2]
[423769936,1780411844000,-1273.0,0.0001396,2]
[423769947,1780411844000,-1917.07,0.00014,2]
[423769935,1780411844000,-525.0,0.0001396,2]
[423769941,1780411844000,-932.0,0.0001396,2]
[423769939,1780411844000,-220.0,0.0001396,2]
[423769938,1780411844000,-200.0,0.0001396,2]
[423769944,1780411844000,-577.44893728,0.00013976,2]
[423769940,1780411844000,-418.0,0.0001396,2]
[423769942,1780411844000,-3690.0,0.00013967,2]
[423769945,1780411844000,-3292.0,0.00013999,2]
[423769943,1780411844000,-166.66,0.00013973,2]
[423769949,1780411844000,-250.0,0.00014,2]
[423769932,1780411844000,-3551.0,0.0001396,2]
[423769957,1780411844000,-15557.34989167,0.00014144,2]
[423769948,1780411844000,-1887.0,0.00014,2]
[423769951,1780411844000,-164.0,0.0001404,2]
[423769950,1780411844000,-367.43,0.00014,2]
[423769952,1780411844000,-2319.0,0.0001404,2]
[423769955,1780411844000,-1136.01,0.00014119,2]
[423769953,1780411844000,-262.63048729,0.000141,2]
[423769954,1780411844000,-166.66,0.0001411,2]
[423769960,1780411844000,-2089.57720836,0.000142,2]
[423769961,1780411844000,-300.0,0.00014232,2]
[423769956,1780411844000,-1848.2461878,0.00014138,2]
[423769962,1780411844000,-500.0,0.00014232,2]
[423769963,1780411844000,-500.0,0.00014232,2]
[423769902,1780411844000,-1591.0,0.0001372,2]
[423769958,1780411844000,-17283.46662815,0.00014144,2]
[423769933,1780411844000,-929.0,0.0001396,2]
[423769959,1780411844000,-631.4,0.00014189,2]
[423769931,1780411844000,-477.91,0.00013932,2]
[423769903,1780411844000,-1591.0,0.0001372,2]
[423769934,1780411844000,-1357.0,0.0001396,2]
[423769906,1780411844000,-17283.46662815,0.00013766,2]
[423769904,1780411844000,-2319.0,0.0001372,2]
[423769905,1780411844000,-15557.34989167,0.00013766,2]
[423769898,1780411844000,-476.11383643,0.00013699,2]
[423769909,1780411844000,-500.0,0.00013868,2]
[423769908,1780411844000,-166.66,0.00013836,2]
[423769911,1780411844000,-1546.0,0.00013869,2]
[423769910,1780411844000,-500.0,0.00013868,2]
[423769913,1780411844000,-1546.0,0.00013869,2]
[423769912,1780411844000,-1546.0,0.00013869,2]
[423769915,1780411844000,-1546.0,0.00013869,2]
[423769914,1780411844000,-1546.0,0.00013869,2]
[423769907,1780411844000,-853.69888839,0.00013831,2]
[423769919,1780411844000,-1546.0,0.00013869,2]
[423769928,1780411844000,-849.31,0.00013884,2]
[423769917,1780411844000,-1546.0,0.00013869,2]
[423769927,1780411844000,-553.0,0.00013884,2]
[423769929,1780411844000,-677.9,0.00013884,2]
[423769922,1780411844000,-500.0,0.00013884,2]
[423769924,1780411844000,-701.24,0.00013884,2]
[423769921,1780411844000,-1546.0,0.00013869,2]
[423769926,1780411844000,-500.0,0.00013884,2]
[423769925,1780411844000,-533.97,0.00013884,2]
[423769923,1780411844000,-500.0,0.00013884,2]
[423769916,1780411844000,-1546.0,0.00013869,2]
[423769920,1780411844000,-1546.0,0.00013869,2]
[423769918,1780411844000,-1546.0,0.00013869,2]
[423769930,1780411844000,-736.0,0.00013885,2]
[423769988,1780411845000,-1591.0,0.0001436,2]
[423769985,1780411845000,-1320.0,0.0001436,2]
[423769983,1780411845000,-500.0,0.00014249,2]
[423769980,1780411845000,-500.0,0.00014249,2]
[423769978,1780411845000,-677.9,0.00014249,2]
[423769999,1780411845000,-500.0,0.00014441,2]
[423769996,1780411845000,-500.0,0.00014441,2]
[423769987,1780411845000,-2319.0,0.0001436,2]
[423769994,1780411845000,-10000.0,0.00014414,2]
[423769997,1780411845000,-701.24,0.00014441,2]
[423769995,1780411845000,-500.0,0.00014441,2]
[423769993,1780411845000,-309.0,0.000144,2]
[423769981,1780411845000,-802.91,0.00014249,2]
[423769992,1780411845000,-166.66,0.00014384,2]
[423769998,1780411845000,-533.97,0.00014441,2]
[423769979,1780411845000,-500.0,0.00014249,2]
[423769973,1780411845000,-701.24,0.00014249,2]
[423769984,1780411845000,-1441.3,0.00014249,2]
[423769972,1780411845000,-500.0,0.00014249,2]
[423769974,1780411845000,-533.97,0.00014249,2]
[423769964,1780411845000,-802.91,0.00014232,2]
[423769989,1780411845000,-853.69888839,0.00014365,2]
[423769971,1780411845000,-500.0,0.00014249,2]
[423769965,1780411845000,-500.0,0.00014232,2]
[423769968,1780411845000,-141390.6197105,0.00014233,2]
[423769967,1780411845000,-1441.3,0.00014232,2]
[423769970,1780411845000,-331.36154747,0.00014249,2]
[423769966,1780411845000,-500.0,0.00014232,2]
[423769969,1780411845000,-166.66,0.00014247,2]
[423769976,1780411845000,-553.0,0.00014249,2]
[423769986,1780411845000,-2319.0,0.0001436,2]
[423769975,1780411845000,-500.0,0.00014249,2]
[423769977,1780411845000,-849.31,0.00014249,2]
[423769982,1780411845000,-500.0,0.00014249,2]
[423769990,1780411845000,-10000.0,0.00014374,2]
[423770005,1780411845000,-811.41129865,0.000145,2]
[423770000,1780411845000,-553.0,0.00014441,2]
[423770026,1780411845000,-2222.0,0.00014579,2]
[423770023,1780411845000,-150.0,0.00014552,2]
[423770021,1780411845000,-150.0,0.00014552,2]
[423770019,1780411845000,-150.0,0.00014552,2]
[423770024,1780411845000,-150.0,0.00014552,2]
[423770025,1780411845000,-403.0,0.00014561,2]
[423770020,1780411845000,-150.0,0.00014552,2]
[423769991,1780411845000,-315.86710236,0.00014383,2]
[423770029,1780411845000,-1868.9184465,0.00014584,2]
[423770030,1780411845000,-2666.89921763,0.00014584,2]
[423770032,1780411845000,-253.55554005,0.00014594,2]
[423770033,1780411845000,-3202.16133588,0.00014595,2]
[423770036,1780411845000,150.0,0.00010014,2]
[423770038,1780411845000,150.0,0.00010016,2]
[423770027,1780411845000,-1575.18233587,0.00014584,2]
[423770022,1780411845000,-150.0,0.00014552,2]
[423770028,1780411845000,150.0,0.00010011,2]
[423770015,1780411845000,-15557.34989167,0.00014522,2]
[423770018,1780411845000,-170.55,0.00014524,2]
[423770002,1780411845000,-677.9,0.00014441,2]
[423770001,1780411845000,-849.31,0.00014441,2]
[423770004,1780411845000,-500.0,0.00014452,2]
[423770003,1780411845000,-1600.0,0.00014452,2]
[423770006,1780411845000,150.0,0.00010009,2]
[423770007,1780411845000,-152.0,0.00010964,7]
[423770017,1780411845000,-2000.0,0.00014524,2]
[423770008,1780411845000,-178.61891391,0.000145,2]
[423770011,1780411845000,-3045.93447163,0.000145,2]
[423770010,1780411845000,-2704.89992728,0.000145,2]
[423770013,1780411845000,-1000.0,0.000145,2]
[423770012,1780411845000,-7958.93750444,0.000145,2]
[423770016,1780411845000,-17283.46662815,0.00014522,2]
[423770014,1780411845000,-315.0,0.000145,2]
[423770009,1780411845000,-300.19788409,0.000145,2]
[423770039,1780411846000,150.0,0.00010019,2]
[423770041,1780411846000,-1262.9,0.0001396,2]
[423770040,1780411846000,150.0,0.00010021,2]
[423770043,1780411846000,-503.2879202,0.0001396,2]
[423770045,1780411846000,-974.46124942,0.0001396,2]
[423770042,1780411846000,-441.68468946,0.0001396,2]
[423770049,1780411846000,150.0,0.00010024,2]
[423770074,1780411847000,150.0,0.00010026,2]
[423770075,1780411851000,150.0,0.00010029,2]
[423770076,1780411854000,150.0,0.00010031,2]
[423770078,1780411857000,150.0,0.00010036,2]
[423770077,1780411857000,150.0,0.00010034,2]
[423770079,1780411858000,150.0,0.00010039,2]
[423770080,1780411859000,150.0,0.00010041,2]
[423770082,1780411860000,150.0,0.00010046,2]
[423770081,1780411860000,150.0,0.00010044,2]
[423770083,1780411862000,150.0,0.00010048,2]
[423770085,1780411863000,150.0,0.00010053,2]
[423770084,1780411863000,150.0,0.00010051,2]
[423770086,1780411864000,150.0,0.00010056,2]
[423770087,1780411865000,150.0,0.00010058,2]
[423770088,1780411865000,150.0,0.00010061,2]
[423770089,1780411866000,150.0,0.00010063,2]
[423770090,1780411868000,150.0,0.00010066,2]
[423770091,1780411869000,150.0,0.00010068,2]
[423770094,1780411871000,150.0,0.00010076,2]
[423770093,1780411871000,150.0,0.00010073,2]
[423770092,1780411871000,150.0,0.00010071,2]
[423770095,1780411873000,150.0,0.00010078,2]
[423770096,1780411874000,150.0,0.00010081,2]
[423770098,1780411875000,150.0,0.00010086,2]
[423770097,1780411875000,150.0,0.00010083,2]
[423770100,1780411876000,150.0,0.00010091,2]
[423770099,1780411876000,150.0,0.00010088,2]
[423770101,1780411879000,150.0,0.00010093,2]
[423770102,1780411881000,150.0,0.00010096,2]
[423770103,1780411882000,150.0,0.00010098,2]
[423770104,1780411882000,150.0,0.000101,2]
[423770105,1780411884000,150.0,0.00010103,2]
[423770106,1780411885000,150.0,0.00010105,2]
[423770108,1780411886000,150.0,0.0001011,2]
[423770107,1780411886000,150.0,0.00010108,2]
[423770109,1780411887000,150.0,0.00010113,2]
[423770111,1780411888000,150.0,0.00010118,2]
[423770110,1780411888000,150.0,0.00010115,2]
[423770113,1780411891000,150.0,0.00010123,2]
[423770112,1780411891000,150.0,0.0001012,2]
[423770114,1780411892000,150.0,0.00010125,2]
[423770115,1780411892000,168.66784861,0.00010417,2]
[423770116,1780411892000,150.0,0.00010128,2]
[423770117,1780411893000,150.0,0.0001013,2]
[423770118,1780411894000,150.0,0.00010133,2]
[423770119,1780411895000,150.0,0.00010135,2]
[423770121,1780411896000,150.0,0.0001014,2]
[423770120,1780411896000,150.0,0.00010138,2]
[423770122,1780411897000,150.0,0.00010143,2]
[423770123,1780411898000,150.0,0.00010145,2]
[423770125,1780411899000,150.0,0.0001015,2]
[423770124,1780411899000,150.0,0.00010148,2]
[423770126,1780411900000,150.0,0.00010152,2]
[423770127,1780411901000,150.0,0.00010155,2]
[423770128,1780411902000,150.0,0.00010157,2]
[423770129,1780411903000,150.0,0.0001016,2]
[423770130,1780411903000,150.0,0.00010162,2]
[423770131,1780411904000,150.0,0.00010165,2]
[423770133,1780411905000,150.0,0.0001017,2]
[423770132,1780411905000,150.0,0.00010167,2]
[423770135,1780411908000,150.0,0.00010175,2]
[423770134,1780411908000,150.0,0.00010172,2]
[423770136,1780411909000,150.0,0.00010177,2]
[423770137,1780411910000,150.0,0.0001018,2]
[423770138,1780411911000,150.0,0.00010182,2]
[423770140,1780411912000,150.0,0.00010187,2]
[423770139,1780411912000,150.0,0.00010185,2]
[423770141,1780411913000,150.0,0.0001019,2]
[423770143,1780411914000,150.0,0.00010195,2]
[423770144,1780411914000,150.0,0.00010197,2]
[423770142,1780411914000,150.0,0.00010192,2]
[423770145,1780411916000,150.0,0.000102,2]
[423770147,1780411916000,150.0,0.00010205,2]
[423770146,1780411916000,150.0,0.00010202,2]
[423770148,1780411917000,150.0,0.00010207,2]
[423770149,1780411918000,150.0,0.00010209,2]
[423770151,1780411919000,150.0,0.00010214,2]
[423770150,1780411919000,150.0,0.00010212,2]
[423770152,1780411921000,162.0,0.000287,120]
[423770153,1780411922000,150.0,0.00010217,2]
[423770154,1780411923000,150.0,0.00010219,2]
[423770156,1780411925000,150.0,0.00010224,2]
[423770155,1780411925000,150.0,0.00010222,2]
[423770157,1780411926000,150.0,0.00010227,2]
[423770158,1780411927000,150.0,0.00010229,2]
[423770159,1780411928000,150.0,0.00010232,2]
[423770160,1780411928000,150.0,0.00010234,2]
[423770161,1780411929000,150.0,0.00010237,2]
[423770163,1780411930000,150.0,0.00010239,2]
[423770162,1780411930000,162.0,0.000287,120]
[423770164,1780411931000,150.0,0.00010242,2]
[423770166,1780411932000,150.0,0.00010247,2]
[423770165,1780411932000,150.0,0.00010244,2]
[423770169,1780411933000,150.0,0.00010254,2]
[423770167,1780411933000,150.0,0.00010249,2]
[423770168,1780411933000,150.0,0.00010252,2]
[423770170,1780411933000,150.0,0.00010257,2]
[423770172,1780411933000,150.0,0.00010259,2]
[423770174,1780411933000,150.0,0.00010264,2]
[423770171,1780411933000,983.72331527,0.00010303,2]
[423770173,1780411933000,150.0,0.00010261,2]
[423770178,1780411934000,150.0,0.00010274,2]
[423770177,1780411934000,150.0,0.00010271,2]
[423770176,1780411934000,150.0,0.00010269,2]
[423770175,1780411934000,150.0,0.00010266,2]
[423770181,1780411936000,150.0,0.00010281,2]
[423770179,1780411936000,150.0,0.00010276,2]
[423770180,1780411936000,150.0,0.00010279,2]
[423770182,1780411937000,150.0,0.00010284,2]
[423770183,1780411938000,150.0,0.00010286,2]
[423770184,1780411939000,150.0,0.00010289,2]
[423770186,1780411940000,150.0,0.00010294,2]
[423770185,1780411940000,150.0,0.00010291,2]
[423770187,1780411941000,150.0,0.00010296,2]
[423770189,1780411944000,150.0,0.00010301,2]
[423770188,1780411944000,150.0,0.00010299,2]
[423770191,1780411945000,150.0,0.00010306,2]
[423770190,1780411945000,150.0,0.00010304,2]
[423770194,1780411947000,150.0,0.00010314,2]
[423770193,1780411947000,150.0,0.00010311,2]
[423770192,1780411947000,150.0,0.00010309,2]
[423770195,1780411948000,150.0,0.00010316,2]
[423770196,1780411950000,150.0,0.00010318,2]
[423770198,1780411951000,150.0,0.00010323,2]
[423770197,1780411951000,150.0,0.00010321,2]
[423770199,1780411952000,150.0,0.00010326,2]
[423770200,1780411953000,150.0,0.00010328,2]
[423770201,1780411953000,150.0,0.00010331,2]
[423770202,1780411955000,150.0,0.00010333,2]
[423770203,1780411956000,150.0,0.00010336,2]
[423770205,1780411957000,150.0,0.00010341,2]
[423770204,1780411957000,150.0,0.00010338,2]
[423770207,1780411958000,150.0,0.00010346,2]
[423770206,1780411958000,150.0,0.00010343,2]
[423770208,1780411959000,150.0,0.00010348,2]
[423770209,1780411959000,150.0,0.00010351,2]
[423770210,1780411960000,150.0,0.00010353,2]
[423770212,1780411962000,150.0,0.00010358,2]
[423770211,1780411962000,150.0,0.00010356,2]
[423770213,1780411964000,150.0,0.00010361,2]
[423770214,1780411965000,150.0,0.00010363,2]
[423770215,1780411969000,150.0,0.00010366,2]
[423770216,1780411970000,150.0,0.00010368,2]
[423770217,1780411971000,150.0,0.0001037,2]
[423770219,1780411971000,150.0,0.00010373,2]
[423770221,1780411972000,150.0,0.00010375,2]
[423770220,1780411972000,204.05557396,0.00010417,2]
[423770222,1780411973000,150.0,0.00010378,2]
[423770224,1780411974000,150.0,0.00010383,2]
[423770223,1780411974000,150.0,0.0001038,2]
[423770225,1780411976000,150.0,0.00010385,2]
[423770226,1780411977000,150.0,0.00010388,2]
[423770227,1780411978000,150.0,0.0001039,2]
[423770229,1780411993000,500.0,0.00026419,120]
[423770230,1780411993000,500.0,0.00028519,120]
[423770235,1780412064000,-500.0,0.00021,30]
[423770234,1780412064000,-152.0,0.00016932,30]
[423770237,1780412064000,-1000.0,0.00024658,30]
[423770236,1780412064000,-7106.33,0.00021,30]
[423770238,1780412064000,-1000.0,0.00024658,30]
[423770240,1780412064000,-665.36818062,0.00024957,30]
[423770239,1780412064000,-375.19113071,0.00024849,30]
[423770242,1780412064000,-5542.43788104,0.00025,30]
[423770247,1780412064000,-375.19113071,0.00025277,60]
[423770243,1780412064000,-215.67541492,0.00025,30]
[423770245,1780412064000,-375.19113071,0.00025134,60]
[423770244,1780412064000,-665.36818062,0.000251,30]
[423770246,1780412064000,-665.36818062,0.00025243,60]
[423770250,1780412064000,-312.67676568,0.00025423,30]
[423770249,1780412064000,-375.19113071,0.00025419,60]
[423770248,1780412064000,-665.36818062,0.00025386,60]
[423770241,1780412064000,-375.19113071,0.00024992,30]
[423770263,1780412065000,-213.38801547,0.000273,30]
[423770262,1780412065000,-1461.836354,0.00027,60]
[423770267,1780412065000,-1000.0,0.00027397,50]
[423770265,1780412065000,-310.83106311,0.00027397,30]
[423770261,1780412065000,-1461.836355,0.00027,60]
[423770268,1780412065000,-244.76,0.00027397,50]
[423770266,1780412065000,-381.22511429,0.00027397,30]
[423770264,1780412065000,-213.38801546,0.000273,30]
[423770260,1780412065000,-1461.836355,0.00027,60]
[423770258,1780412065000,-1000.0,0.00026027,40]
[423770257,1780412065000,-312.67676568,0.00026007,60]
[423770256,1780412065000,-152.77220013,0.00025929,60]
[423770255,1780412065000,-312.67676568,0.00025861,60]
[423770254,1780412065000,-312.67676568,0.00025715,60]
[423770252,1780412065000,-312.67676568,0.00025569,30]
[423770253,1780412065000,-152.77220013,0.00025589,30]
[423770251,1780412065000,-665.36818062,0.00025529,60]
[423770269,1780412065000,-2496.19,0.0002755,30]
[423770259,1780412065000,-1000.0,0.00026027,40]
[423770271,1780412065000,-500.0,0.00027604,60]
[423770284,1780412065000,-820.75,0.00028068,30]
[423770272,1780412065000,-820.78,0.00027611,30]
[423770270,1780412065000,-2463.03,0.0002755,30]
[423770292,1780412065000,-150.0,0.000287,30]
[423770290,1780412065000,-1171.14191965,0.00028666,30]
[423770291,1780412065000,-1020.51,0.000287,30]
[423770289,1780412065000,-218.52030865,0.00028539,60]
[423770287,1780412065000,-1500.0,0.00028152,60]
[423770286,1780412065000,-500.0,0.00028152,60]
[423770285,1780412065000,-820.78,0.00028068,30]
[423770282,1780412065000,-2496.19,0.00028033,30]
[423770288,1780412065000,-310.83,0.00028425,30]
[423770281,1780412065000,-150.0,0.00028,30]
[423770283,1780412065000,-2463.03,0.00028033,30]
[423770273,1780412065000,-820.78,0.00027702,30]
[423770276,1780412065000,-820.78,0.00027885,30]
[423770274,1780412065000,-820.78,0.00027794,30]
[423770275,1780412065000,-820.75,0.00027885,30]
[423770277,1780412065000,-820.75,0.00027977,30]
[423770280,1780412065000,-249.43,0.00028,30]
[423770278,1780412065000,-820.78,0.00027977,30]
[423770279,1780412065000,-1237.0,0.00028,60]
[423770303,1780412066000,-1020.51,0.00028889,30]
[423770310,1780412066000,-3048.0,0.00029,120]
[423770307,1780412066000,-1756.35,0.00028971,30]
[423770309,1780412066000,-304733.48634923,0.00029,30]
[423770308,1780412066000,-1020.51,0.00028984,30]
[423770306,1780412066000,-1020.51,0.00028961,30]
[423770305,1780412066000,-1020.51,0.00028937,30]
[423770304,1780412066000,-1020.51,0.00028913,30]
[423770302,1780412066000,-1020.51,0.00028866,30]
[423770293,1780412066000,-1020.51,0.00028724,30]
[423770300,1780412066000,-1020.51,0.00028818,30]
[423770298,1780412066000,-1020.51,0.00028771,30]
[423770299,1780412066000,-1020.51,0.00028795,30]
[423770297,1780412066000,-349.57331298,0.00028767,120]
[423770296,1780412066000,-2500.0,0.00028767,120]
[423770313,1780412066000,-1020.51,0.00029008,30]
[423770294,1780412066000,-1020.51,0.00028747,30]
[423770295,1780412066000,-1000.0,0.00028767,60]
[423770301,1780412066000,-1020.51,0.00028842,30]
[423770311,1780412066000,-207.0,0.00029,120]
[423770330,1780412066000,-1020.51,0.00029363,30]
[423770312,1780412066000,-29365.73080314,0.00029,30]
[423770314,1780412066000,-1020.51,0.00029032,30]
[423770334,1780412066000,-1015.72,0.00029452,30]
[423770332,1780412066000,-1020.51,0.00029411,30]